Workbook

Sheet 10-15, 24-29.04.2023
A1: Школа | B1: - | E1: Отд./корп | I1: День
A3: Прием пищи | B3: Раздел | C3: № рец. | D3: Блюдо | E3: Выход, г | F3: Цена, руб | G3: Калорийность, ккал | H3: Белки,г | I3: Жиры,г | J3: Углеводы,г
A4: Завтрак | B4: гор.блюдо | C4: ТТК 2022 г | D4: Ёжики мясные с рисом в соусе томатном | E4: 100 | G4: 170.00 | H4: 9.56 | I4: 10.92 | J4: 9.00
B5: гор блюдо | C5: № 202/2015 | D5: Макаронные изделия отварные | E5: 150 | G5: 207.00 | H5: 5.64 | I5: 4.46 | J5: 35.94
B6: гор.напиток | C6: ТТК 2021 г | D6: Чай с сахаром, лимоном | E6: 192 | G6: 31 | H6: 0.06 | I6: 0.01 | J6: 7.34
A7: понедельник | B7: хлеб | D7: Хлеб ржано-пшеничный | E7: 25 | G7: 55.00 | H7: 1.25 | I7: 0.25 | J7: 11.25
C8: № 71/2015 г | D8: Овощи натуральные свежие (огурцы) (доп гарнир) | E8: 25 | G8: 3.00 | H8: 0.17 | I8: 0.02 | J8: 0.47
B9: вафли | D9: Вафли весовые | E9: 40 | G9: 118.00 | H9: 3.26 | I9: 2.24 | J9: 21.00
A11: ИТОГО | E11: =E4+E5+E6+E7+E8+E9 -> 532 | F11: 62.10 | G11: =G4+G5+G6+G7+G8+G9 -> 584 | H11: =H4+H5+H6+H7+H8+H9 -> 19.94 | I11: 17.90 | J11: 85.00
A12: Завтрак | B12: гор.блюдо | C12: ТТК 2021 | D12: Рагу из куриных грудок | E12: 200 | G12: 302.00 | H12: 13.04 | I12: 15.22 | J12: 28.20
A13: вторник | B13: гор.напиток | C13: ТТК 2021 г | D13: Напиток из замороженной черной смородины | E13: 180 | G13: 40.00 | H13: 0.09 | I13: 0.04 | J13: 9.64
B14: хлеб | D14: Хлеб ржано-пшеничный | E14: 20 | G14: 44.00 | H14: 1.00 | I14: 0.20 | J14: 9.00
D15: Хлеб пшеничный | E15: 20 | G15: 47.00 | H15: 1.52 | I15: 0.16 | J15: 9.84
B16: фрукт | C16: № 338/2015г | D16: Плоды свежие (яблоки) | E16: 100 | G16: 47.00 | H16: 0.40 | I16: 0.40 | J16: 9.80
A17: ИТОГО | E17: =E12+E13+E14+E15+E16 -> 520 | F17: 62.10 | G17: =G12+G13+G14+G15+G16 -> 480.00 | H17: =H12+H13+H14+H15+H16 -> 16.05 | I17: =I12+I13+I14+I15+I16 -> 16.02 | J17: 66.48
A18: Завтрак | B18: гор.блюдо | C18: ТТК 2021 г | D18: Котлеты "Школьные" | E18: 90 | G18: 169 | H18: 9.67 | I18: 10.51 | J18: 7.82
B19: гор.блюдо | C19: №302/2015 | D19: Каша гречневая рассыпчатая | E19: 150 | G19: 242 | H19: 6.62 | I19: 5.39 | J19: 41.87
B20: гор.напиток | C20: ТТК 2021 | D20: Компот из свежих плодов (яблоки) | E20: 187 | G20: 29.00 | H20: 0.02 | I20: 0.01 | J20: 7.19
A21: среда | B21: хлеб | D21: Хлеб ржано-пшеничный | E21: 15 | G21: 33.00 | H21: 0.75 | I21: 0.15 | J21: 6.75
B22: хлеб | D22: Хлеб пшеничный | E22: 15 | G22: 35.00 | H22: 1.14 | I22: 0.12 | J22: 7.38
C23: № 71/2015 | D23: Овощи натуральные свежие (помидоры) (доп гарнир) | E23: 45 | G23: 11.00 | H23: 0.49 | I23: 0.09 | J23: 1.71
A25: ИТОГО | E25: =E18+E19+E20+E21+E22+E23 -> 502 | F25: 62.10 | G25: =G18+G19+G20+G21+G22+G23 -> 519.00 | H25: =H18+H19+H20+H21+H22+H23 -> 18.69 | I25: 16.27 | J25: 72.72
A26: Завтрак | B26: гор.блюдо | C26: ТТК 2021г | D26: Плов с куриными грудками | E26: 200 | G26: 354.00 | H26: 13.40 | I26: 15.20 | J26: 41.10
B27: гор.напиток | C27: № 348/2015 г | D27: Напиток из шиповника | E27: 180 | G27: 37.00 | H27: 0.01 | I27: 0.00 | J27: 9.16
B28: хлеб | D28: Хлеб ржано-пшеничный | E28: 15 | G28: 33.00 | H28: 0.75 | I28: 0.15 | J28: 6.75
B29: хлеб | D29: Хлеб пшеничный | E29: 15 | G29: 35.00 | H29: 1.14 | I29: 0.12 | J29: 7.38
A30: четверг | C30: № 71/2015 г | D30: Овощи натуральные свежие (огурцы) (доп гарнир) | E30: 30 | G30: 3.00 | H30: 0.21 | I30: 0.03 | J30: 0.57
B31: фрукты | C31: №338/2015 | D31: Плоды свежие (яблоки) | E31: 100 | G31: 47.00 | H31: 0.40 | I31: 0.40 | J31: 9.80
A33: ИТОГО | E33: =E26+E27+E28+E29+E30+E31 -> 540 | F33: 62.10 | G33: =G26+G27+G28+G29+G30+G31 -> 509.00 | H33: =H26+H27+H28+H29+H30+H31 -> 15.91 | I33: 15.90 | J33: 74.76
A34: Завтрак | B34: гор.блюдо | C34: ТТК 2023 г | D34: Жаркое по домашнему | E34: 185 | G34: 344 | H34: 13.6 | I34: 15.2 | J34: 38.3
B35: гор.напиток | C35: № 648/2004 г | D35: Компот из замороженной компотной смеси | E35: 180 | G35: 41 | H35: 0.12 | I35: 0.02 | J35: 1.03
A36: пятница | B36: хлеб | D36: Хлеб ржано-пшеничный | E36: 20 | G36: 44.00 | H36: 1.00 | I36: 0.20 | J36: 9.00
B37: хлеб | D37: Хлеб пшеничный | E37: 20 | G37: 47.00 | H37: 1.52 | I37: 0.16 | J37: 9.84
B38: фрукт | C38: № 338/2015г | D38: Плоды свежие (яблоки) | E38: 100 | G38: 47.00 | H38: 0.40 | I38: 0.40 | J38: 9.80
A39: ИТОГО | E39: =E34+E35+E36+E37+E38 -> 505 | F39: 62.10 | G39: =G34+G35+G36+G37+G38 -> 523 | H39: =H34+H35+H36+H37+H38 -> 16.64 | I39: 15.98 | J39: 67.97
A40: Завтрак | B40: гор.блюдо | C40: Акт 2020 | D40: Пельмени с соусом "Переменка" | E40: 170 | G40: 272 | H40: 13.60 | I40: 14.80 | J40: 21.45
B41: гор.напиток | C41: ТТК 2021 г | D41: Компот из замороженной вишни | E41: 180 | G41: 43 | H41: 0.10 | I41: 0.03 | J41: 10.41
B42: хлеб | D42: Хлеб ржано-пшеничный | E42: 20 | G42: 44.00 | H42: 1.00 | I42: 0.20 | J42: 9.00
B43: хлеб | D43: Хлеб пшеничный | E43: 20 | G43: 47.00 | H43: 1.52 | I43: 0.16 | J43: 9.84
A44: Суббота | B44: печенье | C44: Акт 2019 | D44: Печенье | E44: 30 | G44: 134.00 | H44: 2.07 | I44: 4.14 | J44: 22.23
B45: фрукт | C45: № 338/2015г | D45: Плоды свежие (яблоки) | E45: 100 | G45: 47.00 | H45: 0.40 | I45: 0.40 | J45: 9.80
A46: ИТОГО | E46: =E40+E41+E42+E43+E44+E45 -> 520 | F46: 62.10 | G46: =G40+G41+G42+G43+G44+G45 -> 587 | H46: =H40+H41+H42+H43+H44+H45 -> 18.69 | I46: 19.73 | J46: 82.73
